Workbook

Sheet Kalkulator pożyczki
B2: KALKULATOR | G2: 50,000 zł | L2: 2011-05-10
B3: POŻYCZKI STUDENCKIEJ
B5: Zaleca się, aby całkowita miesięczna kwota spłaty pożyczki studenckiej nie przekraczała 8% pierwszych rocznych zarobków.
C7: Całkowita bieżąca miesięczna spłata wynosi: | F7: =PożyczkiStudenckie[[#Totals],[Bieżąca miesięczna spłata]] -> 328.59 zł | I7: Całkowita zaplanowana miesięczna spłata wynosi: | M7: =PożyczkiStudenckie[[#Totals],[Zaplanowana spłata]] -> 328.59 zł
C8: Procent miesięcznego przychodu: | F8: =PożyczkiStudenckie[[#Totals],[Bieżąca miesięczna spłata]]/SzacowaneMiesięczneZarobki -> 7.89% | I8: Procent miesięcznego przychodu: | M8: =PożyczkiStudenckie[[#Totals],[Zaplanowana spłata]]/SzacowaneMiesięczneZarobki -> 7.89%
C11: OGÓLNE DANE POŻYCZKI | G11: DANE SPŁATY POŻYCZKI | J11: SZCZEGÓŁY SPŁATY
C12: Nr pożyczki | D12: Pożyczkodawca | E12: Kwota pożyczki | F12: Roczna stopa procentowa | G12: Data rozpoczęcia | H12: Długość (w latach) | I12: Data zakończenia | J12: Bieżąca miesięczna spłata | K12: Suma odsetek | L12: Zaplanowana spłata | M12: Roczna spłata
C13: 10998M88 | D13: Pożyczkodawca 1 | E13: 10,000.00 zł | F13: 5.00% | G13: 2011-04-01 | H13: 10 | I13: =IF(AND(PożyczkiStudenckie[[#This Row],[Data rozpoczęcia]]>0,PożyczkiStudenckie[[#This Row],[Długość (w latach)]]>0),EDATE(PożyczkiStudenckie[[#This Row],[Data rozpoczęcia]],PożyczkiStudenckie[[#This Row],[Długość (w latach)]]*12),"") -> 2021-04-01 | J13: =IF(AND(RozpoczęciePożyczkiOdDzisiaj,COUNT(PożyczkiStudenckie[[#This Row],[Kwota pożyczki]]:PożyczkiStudenckie[[#This Row],[Długość (w latach)]])=4,PożyczkiStudenckie[[#This Row],[Data rozpoczęcia]]<TODAY()),PMT(PożyczkiStudenckie[[#This Row],[Roczna stopa procentowa]]/12,PożyczkiStudenckie[[#This Row],[Długość (w latach)]]*12,-PożyczkiStudenckie[[#This Row],[Kwota pożyczki]],0,0),"") -> 106.07 zł | K13: =IFERROR((PożyczkiStudenckie[[#This Row],[Zaplanowana spłata]]*(PożyczkiStudenckie[[#This Row],[Długość (w latach)]]*12))-PożyczkiStudenckie[[#This Row],[Kwota pożyczki]],"") -> 2,727.86 zł | L13: =IF(COUNTA(PożyczkiStudenckie[[#This Row],[Kwota pożyczki]]:PożyczkiStudenckie[[#This Row],[Długość (w latach)]])<>4,"",PMT(PożyczkiStudenckie[[#This Row],[Roczna stopa procentowa]]/12,PożyczkiStudenckie[[#This Row],[Długość (w latach)]]*12,-PożyczkiStudenckie[[#This Row],[Kwota pożyczki]],0,0)) -> 106.07 zł | M13: =IFERROR(PożyczkiStudenckie[[#This Row],[Zaplanowana spłata]]*12,"") -> 1,272.79 zł
C14: 20987N87 | D14: Pożyczkodawca 2 | E14: 8,000.00 zł | F14: 5.00% | G14: 2011-05-01 | H14: 10 | I14: =IF(AND(PożyczkiStudenckie[[#This Row],[Data rozpoczęcia]]>0,PożyczkiStudenckie[[#This Row],[Długość (w latach)]]>0),EDATE(PożyczkiStudenckie[[#This Row],[Data rozpoczęcia]],PożyczkiStudenckie[[#This Row],[Długość (w latach)]]*12),"") -> 2021-05-01 | J14: =IF(AND(RozpoczęciePożyczkiOdDzisiaj,COUNT(PożyczkiStudenckie[[#This Row],[Kwota pożyczki]]:PożyczkiStudenckie[[#This Row],[Długość (w latach)]])=4,PożyczkiStudenckie[[#This Row],[Data rozpoczęcia]]<TODAY()),PMT(PożyczkiStudenckie[[#This Row],[Roczna stopa procentowa]]/12,PożyczkiStudenckie[[#This Row],[Długość (w latach)]]*12,-PożyczkiStudenckie[[#This Row],[Kwota pożyczki]],0,0),"") -> 84.85 zł | K14: =IFERROR((PożyczkiStudenckie[[#This Row],[Zaplanowana spłata]]*(PożyczkiStudenckie[[#This Row],[Długość (w latach)]]*12))-PożyczkiStudenckie[[#This Row],[Kwota pożyczki]],"") -> 2,182.29 zł | L14: =IF(COUNTA(PożyczkiStudenckie[[#This Row],[Kwota pożyczki]]:PożyczkiStudenckie[[#This Row],[Długość (w latach)]])<>4,"",PMT(PożyczkiStudenckie[[#This Row],[Roczna stopa procentowa]]/12,PożyczkiStudenckie[[#This Row],[Długość (w latach)]]*12,-PożyczkiStudenckie[[#This Row],[Kwota pożyczki]],0,0)) -> 84.85 zł | M14: =IFERROR(PożyczkiStudenckie[[#This Row],[Zaplanowana spłata]]*12,"") -> 1,018.23 zł
C15: 36785LM | D15: Pożyczkodawca 3 | E15: 6,000.00 zł | F15: 4.50% | G15: 2012-03-01 | H15: 10 | I15: =IF(AND(PożyczkiStudenckie[[#This Row],[Data rozpoczęcia]]>0,PożyczkiStudenckie[[#This Row],[Długość (w latach)]]>0),EDATE(PożyczkiStudenckie[[#This Row],[Data rozpoczęcia]],PożyczkiStudenckie[[#This Row],[Długość (w latach)]]*12),"") -> 2022-03-01 | J15: =IF(AND(RozpoczęciePożyczkiOdDzisiaj,COUNT(PożyczkiStudenckie[[#This Row],[Kwota pożyczki]]:PożyczkiStudenckie[[#This Row],[Długość (w latach)]])=4,PożyczkiStudenckie[[#This Row],[Data rozpoczęcia]]<TODAY()),PMT(PożyczkiStudenckie[[#This Row],[Roczna stopa procentowa]]/12,PożyczkiStudenckie[[#This Row],[Długość (w latach)]]*12,-PożyczkiStudenckie[[#This Row],[Kwota pożyczki]],0,0),"") -> 62.18 zł | K15: =IFERROR((PożyczkiStudenckie[[#This Row],[Zaplanowana spłata]]*(PożyczkiStudenckie[[#This Row],[Długość (w latach)]]*12))-PożyczkiStudenckie[[#This Row],[Kwota pożyczki]],"") -> 1,461.97 zł | L15: =IF(COUNTA(PożyczkiStudenckie[[#This Row],[Kwota pożyczki]]:PożyczkiStudenckie[[#This Row],[Długość (w latach)]])<>4,"",PMT(PożyczkiStudenckie[[#This Row],[Roczna stopa procentowa]]/12,PożyczkiStudenckie[[#This Row],[Długość (w latach)]]*12,-PożyczkiStudenckie[[#This Row],[Kwota pożyczki]],0,0)) -> 62.18 zł | M15: =IFERROR(PożyczkiStudenckie[[#This Row],[Zaplanowana spłata]]*12,"") -> 746.20 zł
C16: 765R43 | D16: Pożyczkodawca 4 | E16: 4,000.00 zł | F16: 5.00% | G16: 2012-05-01 | H16: 5 | I16: =IF(AND(PożyczkiStudenckie[[#This Row],[Data rozpoczęcia]]>0,PożyczkiStudenckie[[#This Row],[Długość (w latach)]]>0),EDATE(PożyczkiStudenckie[[#This Row],[Data rozpoczęcia]],PożyczkiStudenckie[[#This Row],[Długość (w latach)]]*12),"") -> 2017-05-01 | J16: =IF(AND(RozpoczęciePożyczkiOdDzisiaj,COUNT(PożyczkiStudenckie[[#This Row],[Kwota pożyczki]]:PożyczkiStudenckie[[#This Row],[Długość (w latach)]])=4,PożyczkiStudenckie[[#This Row],[Data rozpoczęcia]]<TODAY()),PMT(PożyczkiStudenckie[[#This Row],[Roczna stopa procentowa]]/12,PożyczkiStudenckie[[#This Row],[Długość (w latach)]]*12,-PożyczkiStudenckie[[#This Row],[Kwota pożyczki]],0,0),"") -> 75.48 zł | K16: =IFERROR((PożyczkiStudenckie[[#This Row],[Zaplanowana spłata]]*(PożyczkiStudenckie[[#This Row],[Długość (w latach)]]*12))-PożyczkiStudenckie[[#This Row],[Kwota pożyczki]],"") -> 529.10 zł | L16: =IF(COUNTA(PożyczkiStudenckie[[#This Row],[Kwota pożyczki]]:PożyczkiStudenckie[[#This Row],[Długość (w latach)]])<>4,"",PMT(PożyczkiStudenckie[[#This Row],[Roczna stopa procentowa]]/12,PożyczkiStudenckie[[#This Row],[Długość (w latach)]]*12,-PożyczkiStudenckie[[#This Row],[Kwota pożyczki]],0,0)) -> 75.48 zł | M16: =IFERROR(PożyczkiStudenckie[[#This Row],[Zaplanowana spłata]]*12,"") -> 905.82 zł
C17: Sumy | E17: =SUBTOTAL(109,PożyczkiStudenckie[Kwota pożyczki]) -> 28,000.00 zł | J17: =SUBTOTAL(109,PożyczkiStudenckie[Bieżąca miesięczna spłata]) -> 328.59 zł | K17: =SUBTOTAL(109,PożyczkiStudenckie[Suma odsetek]) -> 6,901.21 zł | L17: =SUBTOTAL(109,PożyczkiStudenckie[Zaplanowana spłata]) -> 328.59 zł | M17: =SUBTOTAL(109,PożyczkiStudenckie[Roczna spłata]) -> 3,943.03 zł
C18: Wartości średnie | E18: =AVERAGE(PożyczkiStudenckie[Kwota pożyczki]) -> 7,000.00 zł | F18: =AVERAGE(PożyczkiStudenckie[Roczna stopa procentowa]) -> 4.88% | K18: =AVERAGE(PożyczkiStudenckie[Suma odsetek]) -> 1,725.30 zł | M18: =AVERAGE(PożyczkiStudenckie[Roczna spłata]) -> 985.76 zł
K20: Całkowita skonsolidowana spłata pożyczki: | M20: =PożyczkiStudenckie[[#Totals],[Kwota pożyczki]]+PożyczkiStudenckie[[#Totals],[Suma odsetek]] -> 34,901.21 zł
K22: Szacowany przychód miesięczny po ukończeniu studiów: | M22: =(SzacowaneRoczneZarobki/12) -> 4,166.67 zł
